fUST/lending_fUST_20240828
["ID","MTS","AMOUNT","RATE_DAILY","PERIOD"]
[336410601,1724815761592,-502.70661469,0.00010958,2]
[336410602,1724815761616,-500.0,0.00010958,2]
[336410603,1724815761640,-500.0,0.00010958,2]
[336410604,1724815761663,-500.0,0.00010958,2]
[336410605,1724815761684,-502.27969708,0.00010958,2]
[336410606,1724815761704,-500.0,0.00010958,2]
[336410607,1724815761725,-500.0,0.00010958,2]
[336410608,1724815761746,-501.37453362,0.00010958,2]
[336410609,1724815761767,-500.0,0.00010958,2]
[336410610,1724815761790,-500.0,0.00010958,2]
[336410611,1724815761812,-500.0,0.00010958,2]
[336410612,1724815761834,-500.0,0.00010958,2]
[336410613,1724815761857,-500.0,0.00010958,2]
[336410614,1724815761879,-500.0,0.00010958,2]
[336410615,1724815761900,-500.0,0.00010958,2]
[336410616,1724815761922,-500.0,0.00010958,2]
[336410617,1724815761945,-500.0,0.00010958,2]
[336410618,1724815761970,-502.27644926,0.00010958,2]
[336410619,1724815761992,-500.0,0.00010958,2]
[336410620,1724815762014,-500.0,0.00010958,2]
[336410621,1724815762036,-500.0,0.00010958,2]
[336410622,1724815762061,-500.0,0.00010958,2]
[336410623,1724815762084,-500.0,0.00010958,2]
[336410624,1724815762108,-500.0,0.00010958,2]
[336410625,1724815762130,-500.0,0.00010958,2]
[336410626,1724815762152,-500.0,0.00010958,2]
[336410627,1724815762173,-500.0,0.00010958,2]
[336410628,1724815762194,-500.0,0.00010958,2]
[336410629,1724815762217,-1930.71,0.00010958,2]
[336410630,1724815762240,-500.0,0.00010958,2]
[336410631,1724815762261,-500.0,0.00010958,2]
[336410632,1724815762282,-500.0,0.00010958,2]
[336410633,1724815762304,-500.0,0.00010958,2]
[336410634,1724815762325,-501.27390664,0.00010958,2]
[336410635,1724815762348,-500.0,0.00010958,2]
[336410636,1724815762371,-500.0,0.00010958,2]
[336410637,1724815762391,-500.0,0.00010958,2]
[336410638,1724815762414,-500.0,0.00010958,2]
[336410639,1724815762439,-500.0,0.00010958,2]
[336410640,1724815762461,-500.0,0.00010958,2]
[336410641,1724815762483,-500.0,0.00010958,2]
[336410642,1724815762507,-1667.95,0.00010958,2]
[336410643,1724815762531,-500.0,0.00010958,2]
[336410644,1724815762554,-500.0,0.00010958,2]
[336410645,1724815762576,-500.0,0.00010958,2]
[336410646,1724815762597,-500.0,0.00010958,2]
[336410647,1724815762617,-500.0,0.00010958,2]
[336410648,1724815762637,-500.0,0.00010958,2]
[336410649,1724815762658,-500.0,0.00010958,2]
[336410650,1724815762683,-500.0,0.00010958,2]
[336410651,1724815762704,-500.0,0.00010958,2]
[336410652,1724815762728,-500.0,0.00010958,2]
[336410653,1724815762751,-503.08686643,0.00010958,2]
[336410654,1724815762774,-500.0,0.00010958,2]
[336410655,1724815762797,-500.0,0.00010958,2]
[336410656,1724815762821,-500.0,0.00010958,2]
[336410657,1724815762845,-500.0,0.00010958,2]
[336410658,1724815762868,-500.87094952,0.00010958,2]
[336410659,1724815762889,-500.0,0.00010958,2]
[336410660,1724815762910,-500.0,0.00010958,2]
[336410661,1724815762932,-500.0,0.00010958,2]
[336410662,1724815762954,-500.0,0.00010958,2]
[336410663,1724815762979,-9201.91,0.00010958,2]
[336410664,1724815763001,-500.0,0.00010958,2]
[336410665,1724815763022,-500.0,0.00010958,2]
[336410666,1724815763044,-500.0,0.00010958,2]
[336410667,1724815763067,-500.0,0.00010958,2]
[336410668,1724815763089,-500.0,0.00010958,2]
[336410669,1724815763110,-500.0,0.00010958,2]
[336410670,1724815763132,-540.73,0.00010958,2]
[336410671,1724815763152,-502.96904072,0.00010958,2]
[336410672,1724815763173,-497.53983266,0.00010958,2]
[336410673,1724815763194,-500.0,0.00010958,2]
[336410674,1724815763219,-500.0,0.00010958,2]
[336410675,1724815763247,-234.06065685,0.00010958,2]
[336410679,1724815771252,-1978.44986514,0.00010957,2]
[336410728,1724815832813,-35.85575911,0.00010739,2]
[336410820,1724815838805,-720.84043094,0.00010739,2]
[336410822,1724815838818,-8095.39544779,0.00010739,2]
[336410824,1724815838828,-1614.89424895,0.00010739,2]
[336410826,1724815838837,-1768.0013112,0.00010739,2]
[336410828,1724815838847,-300.0,0.00010957,2]
[336410829,1724815838856,-207.05560452,0.00010957,2]
[336410830,1724815838867,-281.28550327,0.00010958,2]
[336410831,1724815838878,-493.2026112,0.00010958,2]
[336410832,1724815838888,-500.0,0.00010958,2]
[336410833,1724815838898,-500.0,0.00010958,2]
[336410834,1724815838908,-500.0,0.00010958,2]
[336410835,1724815838917,-500.0,0.00010958,2]
[336410836,1724815838927,-500.0,0.00010958,2]
[336410837,1724815838939,-500.0,0.00010958,2]
[336410838,1724815838949,-520.3,0.00010958,2]
[336410839,1724815838958,-500.0,0.00010958,2]
[336410840,1724815838967,-500.0,0.00010958,2]
[336410841,1724815838976,-501.90842142,0.00010958,2]
[336410842,1724815838987,-500.0,0.00010958,2]
[336410843,1724815838996,-500.0,0.00010958,2]
[336410844,1724815839005,-500.0,0.00010958,2]
[336410845,1724815839016,-500.0,0.00010958,2]
[336410846,1724815839026,-500.0,0.00010958,2]
[336410847,1724815839037,-500.0,0.00010958,2]
[336410848,1724815839047,-591.89,0.00010958,2]
[336410849,1724815839056,-500.0,0.00010958,2]
[336410850,1724815839067,-500.0,0.00010958,2]
[336410851,1724815839077,-201.82732898,0.00010958,2]
[336410852,1724815839087,-500.0,0.00010958,2]
[336410853,1724815839097,-500.0,0.00010958,2]
[336410854,1724815839106,-500.0,0.00010958,2]
[336410855,1724815839116,-500.0,0.00010958,2]
[336410856,1724815839126,-500.0,0.00010958,2]
[336410857,1724815839136,-500.0,0.00010958,2]
[336410858,1724815839145,-523.92855042,0.00010958,2]
[336410859,1724815839156,-500.0,0.00010958,2]
[336410860,1724815839166,-500.0,0.00010958,2]
[336410861,1724815839175,-500.0,0.00010958,2]
[336410862,1724815839184,-500.0,0.00010958,2]
[336410863,1724815839193,-500.0,0.00010958,2]
[336410864,1724815839203,-500.0,0.00010958,2]
[336410865,1724815839212,-500.0,0.00010958,2]
[336410866,1724815839222,-500.0,0.00010958,2]
[336410867,1724815839231,-500.0,0.00010958,2]
[336410868,1724815839240,-500.0,0.00010958,2]
[336410869,1724815839249,-500.0,0.00010958,2]
[336410870,1724815839258,-507.07,0.00010958,2]
[336410871,1724815839267,-500.0,0.00010958,2]
[336410872,1724815839276,-500.0,0.00010958,2]
[336410873,1724815839285,-1871.19,0.00010958,2]
[336410874,1724815839294,-500.0,0.00010958,2]
[336410875,1724815839304,-500.0,0.00010958,2]
[336410876,1724815839313,-524.66746922,0.00010958,2]
[336410877,1724815839324,-500.0,0.00010958,2]
[336410878,1724815839333,-500.85238398,0.00010958,2]
[336410879,1724815839342,-500.0,0.00010958,2]
[336410880,1724815839351,-612.66,0.00010958,2]
[336410881,1724815839361,-501.49429034,0.00010958,2]
[336410882,1724815839370,-500.39436697,0.00010958,2]
[336410883,1724815839379,-500.0,0.00010958,2]
[336410884,1724815839388,-500.77997714,0.00010958,2]
[336410885,1724815839398,-3233.87,0.00010958,2]
[336410886,1724815839407,-248.55963741,0.00010958,2]
[336410887,1724815839416,-500.0,0.00010958,2]
[336410888,1724815839425,-500.0,0.00010958,2]
[336410889,1724815839436,-500.0,0.00010958,2]
[336410890,1724815839445,-500.0,0.00010958,2]
[336410891,1724815839457,-500.0,0.00010958,2]
[336410892,1724815839466,-500.0,0.00010958,2]
[336410893,1724815839476,-500.9563934,0.00010958,2]
[336410894,1724815839485,-500.0,0.00010958,2]
[336410895,1724815839495,-500.0,0.00010958,2]
[336410896,1724815839504,-500.0,0.00010958,2]
[336410897,1724815839513,-500.0,0.00010958,2]
[336410898,1724815839522,-500.0,0.00010958,2]
[336410899,1724815839533,-500.0,0.00010958,2]
[336410900,1724815839542,-1607.92,0.00010958,2]
[336410901,1724815839552,-500.0,0.00010958,2]
[336410902,1724815839561,-500.65883918,0.00010958,2]
[336410903,1724815839570,-752.23,0.00010958,2]
[336410904,1724815839580,-752.23,0.00010958,2]
[336410905,1724815839589,-752.23,0.00010958,2]
[336410906,1724815839598,-489.13795514,0.00010958,2]
[336410907,1724815839607,-752.23,0.00010958,2]
[336410908,1724815839616,-500.0,0.00010958,2]
[336410909,1724815839625,-500.0,0.00010958,2]
[336410910,1724815839635,-501.36054009,0.00010958,2]
[336410911,1724815839644,-462.39322236,0.00010958,2]
[336410912,1724815839654,-500.0,0.00010958,2]
[336410913,1724815839664,-500.0,0.00010958,2]
[336410914,1724815839674,-500.0,0.00010958,2]
[336410915,1724815839684,-500.0,0.00010958,2]
[336410916,1724815839694,-500.0,0.00010958,2]
[336410917,1724815839705,-516.95,0.00010958,2]
[336410918,1724815839714,-500.0,0.00010958,2]
[336410919,1724815839723,-351.82049501,0.00010958,2]
[336410920,1724815839733,-500.0,0.00010958,2]
[336410921,1724815839744,-500.0,0.00010958,2]
[336410922,1724815839754,-500.0,0.00010958,2]
[336410923,1724815839764,-500.0,0.00010958,2]
[336410924,1724815839773,-500.0,0.00010958,2]
[336410925,1724815839782,-510.19190414,0.00010958,2]
[336410926,1724815839793,-500.0,0.00010958,2]
[336410927,1724815839803,-500.0,0.00010958,2]
[336410928,1724815839814,-500.0,0.00010958,2]
[336410929,1724815839825,-500.0,0.00010958,2]
[336410930,1724815839835,-500.0,0.00010958,2]
[336410931,1724815839846,-500.0,0.00010958,2]
[336410932,1724815839856,-501.64300067,0.00010958,2]
[336410933,1724815839868,-503.97942478,0.00010958,2]
[336410934,1724815839878,-500.0,0.00010958,2]
[336410935,1724815839888,-500.0,0.00010958,2]
[336410936,1724815839899,-500.0,0.00010958,2]
[336410937,1724815839911,-500.0,0.00010958,2]
[336410938,1724815839921,-587.56,0.00010958,2]
[336410939,1724815839932,-505.69797483,0.00010958,2]
[336410940,1724815839941,-500.0,0.00010958,2]
[336410941,1724815839952,-500.0,0.00010958,2]
[336410942,1724815839963,-500.0,0.00010958,2]
[336410943,1724815839973,-1818.83,0.00010958,2]
[336410944,1724815839983,-500.0,0.00010958,2]
[336410945,1724815839992,-500.0,0.00010958,2]
[336410946,1724815840002,-500.0,0.00010958,2]
[336410947,1724815840011,-916.45,0.00010958,2]
[336410948,1724815840021,-500.0,0.00010958,2]
[336410949,1724815840030,-500.0,0.00010958,2]
[336410950,1724815840039,-500.0,0.00010958,2]
[336410951,1724815840049,-500.0,0.00010958,2]
[336410952,1724815840059,-500.0,0.00010958,2]
[336410953,1724815840070,-234.71928802,0.00010958,2]
[336410954,1724815840079,-502.21806585,0.00010958,2]
[336410955,1724815840089,-500.0,0.00010958,2]
[336410956,1724815840100,-501.41080509,0.00010958,2]
[336410957,1724815840110,-765.55,0.00010958,2]
[336410958,1724815840120,-502.21915351,0.00010958,2]
[336410959,1724815840130,-500.0,0.00010958,2]
[336410960,1724815840140,-501.91416893,0.00010958,2]
[336410961,1724815840150,-500.0,0.00010958,2]
[336410962,1724815840163,-500.0,0.00010958,2]
[336410963,1724815840172,-500.0,0.00010958,2]
[336410964,1724815840182,-500.0,0.00010958,2]
[336410965,1724815840193,-500.0,0.00010958,2]
[336410966,1724815840203,-500.0,0.00010958,2]
[336410967,1724815840215,-500.0,0.00010958,2]
[336410968,1724815840225,-503.42218922,0.00010958,2]
[336410969,1724815840234,-500.0,0.00010958,2]
[336410970,1724815840247,-500.0,0.00010958,2]
[336410971,1724815840257,-506.34058215,0.00010958,2]
[336410972,1724815840266,-3778.36,0.00010958,2]
[336410973,1724815840275,-500.0,0.00010958,2]
[336410974,1724815840285,-500.0,0.00010958,2]
[336410975,1724815840294,-261.19560127,0.00010958,2]
[336410976,1724815840304,-500.0,0.00010958,2]
[336410977,1724815840314,-531.11,0.00010958,2]
[336410978,1724815840323,-500.0,0.00010958,2]
[336410979,1724815840333,-500.0,0.00010958,2]
[336410980,1724815840342,-500.0,0.00010958,2]
[336410981,1724815840352,-500.0,0.00010958,2]
[336410982,1724815840361,-1929.06,0.00010958,2]
[336410983,1724815840370,-500.0,0.00010958,2]
[336410984,1724815840380,-500.0,0.00010958,2]
[336410985,1724815840390,-500.0,0.00010958,2]
[336410986,1724815840400,-500.0,0.00010958,2]
[336410987,1724815840409,-229.40978399,0.00010958,2]
[336410989,1724815840418,-500.0,0.00010958,2]
[336410991,1724815840428,-500.0,0.00010958,2]
[336410993,1724815840438,-502.25351092,0.00010958,2]
[336410994,1724815840449,-500.0,0.00010958,2]
[336410995,1724815840460,-500.0,0.00010958,2]
[336410996,1724815840469,-500.0,0.00010958,2]
[336410997,1724815840479,-500.0,0.00010958,2]
[336410998,1724815840488,-500.0,0.00010958,2]
[336410999,1724815840499,-9204.49,0.00010958,2]
[336411000,1724815840508,-500.0,0.00010958,2]
[336411001,1724815840517,-557.4459425,0.00010958,2]
[336411002,1724815840529,-1836.73,0.00010958,2]
[336411003,1724815840539,-500.0,0.00010958,2]
[336411004,1724815840548,-500.0,0.00010958,2]
[336411005,1724815840558,-2555.11,0.00010958,2]
[336411006,1724815840567,-500.0,0.00010958,2]
[336411007,1724815840576,-466.98992962,0.00010958,2]
[336411008,1724815840585,-500.0,0.00010958,2]
[336411009,1724815840594,-500.0,0.00010958,2]
[336411010,1724815840603,-500.0,0.00010958,2]
[336411011,1724815840612,-500.0,0.00010958,2]
[336411012,1724815840622,-500.0,0.00010958,2]
[336411013,1724815840636,-500.0,0.00010958,2]
[336411014,1724815840645,-500.0,0.00010958,2]
[336411015,1724815840655,-409.05557946,0.00010958,2]
[336411016,1724815840664,-500.0,0.00010958,2]
[336411017,1724815840674,-500.0,0.00010958,2]
[336411018,1724815840684,-500.0,0.00010958,2]
[336411019,1724815840694,-2427.25,0.00010958,2]
[336411020,1724815840703,-500.0,0.00010958,2]
[336411021,1724815840712,-500.77128868,0.00010958,2]
[336411022,1724815840721,-500.0,0.00010958,2]
[336411023,1724815840731,-500.0,0.00010958,2]
[336411024,1724815840740,-500.0,0.00010958,2]
[336411025,1724815840749,-500.0,0.00010958,2]
[336411026,1724815840759,-500.0,0.00010958,2]
[336411027,1724815840768,-500.0,0.00010958,2]
[336411028,1724815840777,-977.36,0.00010958,2]
[336411029,1724815840786,-500.0,0.00010958,2]
[336411030,1724815840795,-500.0,0.00010958,2]
[336411032,1724815840804,-500.0,0.00010958,2]
[336411034,1724815840814,-500.0,0.00010958,2]
[336411036,1724815840825,-500.0,0.00010958,2]
[336411037,1724815840834,-500.0,0.00010958,2]
[336411038,1724815840845,-502.92256548,0.00010958,2]
[336411039,1724815840858,-5394.76,0.00010958,2]
[336411040,1724815840867,-500.0,0.00010958,2]
[336411041,1724815840877,-500.0,0.00010958,2]
[336411043,1724815840887,-1445.32,0.00010958,2]
[336411045,1724815840896,-500.0,0.00010958,2]
[336411046,1724815840906,-501.83939237,0.00010958,2]
[336411047,1724815840915,-500.0,0.00010958,2]
[336411048,1724815840925,-500.0,0.00010958,2]
[336411049,1724815840936,-208.59094196,0.00010958,2]
[336411050,1724815840946,-628.50322203,0.00010958,2]
[336411051,1724815840955,-235.8065945,0.00010959,2]
[336411052,1724815840964,-848.19,0.00010959,2]
[336411053,1724815840973,-435.0771508,0.00010973,2]
[336411054,1724815840982,-155.0,0.00010973,2]
[336411055,1724815840992,-500.50433157,0.00010973,2]
[336411056,1724815841001,-501.77098307,0.00010973,2]
[336411057,1724815841011,-2153.5114651,0.00011132,2]
[336411058,1724815841020,-500.0,0.00011231,2]
[336411059,1724815841030,-500.0,0.00011231,2]
[336411060,1724815841039,-752.23,0.00011231,2]
[336411061,1724815841049,-500.0,0.00011231,2]
[336411062,1724815841058,-502.05045916,0.00011232,2]
[336411063,1724815841068,-500.0,0.00011232,2]
[336411064,1724815841078,-568.65741703,0.00011232,2]
[336411065,1724815841087,-500.0,0.00011232,2]
[336411066,1724815841098,-320.57084156,0.00011232,2]
[336411067,1724815841108,-500.0,0.00011232,2]
[336411068,1724815841118,-500.0,0.00011232,2]
[336411069,1724815841130,-500.0,0.00011232,2]
[336411070,1724815841139,-500.0,0.00011232,2]
[336411071,1724815841149,-500.0,0.00011232,2]
[336411072,1724815841158,-503.37308148,0.00011232,2]
[336411073,1724815841168,-500.0,0.00011232,2]
[336411074,1724815841178,-500.0,0.00011232,2]
[336411075,1724815841187,-500.0,0.00011232,2]
[336411076,1724815841197,-500.0,0.00011232,2]
[336411077,1724815841207,-353.18,0.00011232,2]
[336411078,1724815841217,-350.0652073,0.00011232,2]
[336411079,1724815841226,-500.0,0.00011232,2]
[336411080,1724815841236,-568.66,0.00011232,2]
[336411081,1724815841246,-500.0,0.00011232,2]
[336411082,1724815841256,-500.0,0.00011232,2]
[336411083,1724815841266,-500.0,0.00011232,2]
[336411084,1724815841275,-174.48106513,0.00011232,2]
[336411085,1724815841284,-500.0,0.00011232,2]
[336411086,1724815841294,-500.0,0.00011232,2]
[336411087,1724815841304,-217.05,0.00011232,2]
[336411088,1724815841313,-500.0,0.00011232,2]
[336411089,1724815841323,-483.25,0.00011232,2]
[336411090,1724815841333,-539.62,0.00011232,2]
[336411091,1724815841342,-268.2629327,0.00011232,2]
[336411092,1724815841352,-500.0,0.00011232,2]
[336411093,1724815841361,-243.9,0.00011232,2]
[336411094,1724815841370,-505.65423736,0.00011232,2]
[336411095,1724815841380,-500.0,0.00011232,2]
[336411096,1724815841391,-500.0,0.00011232,2]
[336411097,1724815841401,-500.0,0.00011232,2]
[336411098,1724815841411,-500.0,0.00011232,2]
[336411099,1724815841422,-501.71882205,0.00011232,2]
[336411100,1724815841432,-500.0,0.00011232,2]
[336411101,1724815841442,-500.0,0.00011232,2]
[336411102,1724815841454,-619.4,0.00011232,2]
[336411103,1724815841463,-500.0,0.00011232,2]
[336411104,1724815841473,-156.34,0.00011232,2]
[336411105,1724815841484,-500.0,0.00011232,2]
[336411106,1724815841495,-500.0,0.00011232,2]
[336411107,1724815841506,-500.0,0.00011232,2]
[336411108,1724815841517,-500.0,0.00011232,2]
[336411109,1724815841529,-500.0,0.00011232,2]
[336411110,1724815841539,-500.0,0.00011232,2]
[336411111,1724815841551,-568.90346621,0.00011232,2]
[336411112,1724815841561,-500.0,0.00011232,2]
[336411113,1724815841572,-644.06456395,0.00011232,2]
[336411114,1724815841584,-500.0,0.00011232,2]
[336411115,1724815841596,-500.0,0.00011232,2]
[336411116,1724815841606,-500.0,0.00011232,2]
[336411117,1724815841615,-395.75494475,0.00011232,2]
[336411118,1724815841625,-501.70695037,0.00011232,2]
[336411119,1724815841634,-500.0,0.00011232,2]
[336411120,1724815841644,-500.0,0.00011232,2]
[336411121,1724815841654,-500.0,0.00011232,2]
[336411122,1724815841663,-500.0,0.00011232,2]
[336411123,1724815841673,-500.0,0.00011232,2]
[336411124,1724815841683,-500.0,0.00011232,2]
[336411125,1724815841693,-500.0,0.00011232,2]
[336411126,1724815841703,-500.0,0.00011232,2]
[336411127,1724815841712,-500.0,0.00011232,2]
[336411128,1724815841722,-500.0,0.00011232,2]
[336411129,1724815841731,-301.88554015,0.00011232,2]
[336411130,1724815841741,-500.0,0.00011232,2]
[336411131,1724815841751,-500.0,0.00011232,2]
[336411132,1724815841760,-500.0,0.00011232,2]
[336411133,1724815841770,-500.0,0.00011232,2]
[336411134,1724815841779,-500.0,0.00011232,2]
[336411135,1724815841789,-617.46,0.00011232,2]
[336411136,1724815841798,-500.0,0.00011232,2]
[336411137,1724815841808,-602.94,0.00011232,2]
[336411138,1724815841818,-501.95712292,0.00011232,2]
[336411139,1724815841829,-500.0,0.00011232,2]
[336411140,1724815841839,-198.29044407,0.00011232,2]
[336411141,1724815841848,-259.96,0.00011232,2]
[336411142,1724815841858,-500.0,0.00011232,2]
[336411143,1724815841868,-308.76809402,0.00011232,2]
[336411144,1724815841879,-500.0,0.00011232,2]
[336411145,1724815841889,-500.0,0.00011232,2]
[336411146,1724815841899,-500.0,0.00011232,2]
[336411147,1724815841909,-639.08587818,0.00011232,2]
[336411148,1724815841919,-500.0,0.00011232,2]
[336411149,1724815841929,-274.03727541,0.00011232,2]
[336411150,1724815841938,-159.71924606,0.00011232,2]
[336411151,1724815841948,-500.0,0.00011232,2]
[336411152,1724815841957,-500.0,0.00011232,2]
[336411153,1724815841967,-500.0,0.00011232,2]
[336411154,1724815841976,-500.0,0.00011232,2]
[336411155,1724815841986,-500.0,0.00011232,2]
[336411156,1724815841996,-500.0,0.00011232,2]
[336411157,1724815842005,-500.0,0.00011232,2]
[336411158,1724815842015,-500.0,0.00011232,2]
[336411159,1724815842024,-504.34855057,0.00011232,2]
[336411160,1724815842033,-500.0,0.00011232,2]
[336411161,1724815842045,-500.0,0.00011232,2]
[336411162,1724815842054,-500.0,0.00011232,2]
[336411163,1724815842064,-500.0,0.00011232,2]
[336411164,1724815842074,-500.0,0.00011232,2]
[336411165,1724815842083,-501.31604962,0.00011232,2]
[336411166,1724815842093,-500.0,0.00011232,2]
[336411167,1724815842104,-520.3,0.00011232,2]
[336411168,1724815842114,-500.0,0.00011232,2]
[336411169,1724815842125,-500.0,0.00011232,2]
[336411170,1724815842136,-500.0,0.00011232,2]
[336411171,1724815842146,-274.24,0.00011232,2]
[336411172,1724815842155,-501.17783791,0.00011232,2]
[336411173,1724815842165,-500.0,0.00011232,2]
[336411174,1724815842175,-500.0,0.00011232,2]
[336411175,1724815842186,-500.0,0.00011232,2]
[336411176,1724815842196,-500.0,0.00011232,2]
[336411177,1724815842207,-515.49504094,0.00011232,2]
[336411178,1724815842217,-500.0,0.00011232,2]
[336411179,1724815842227,-500.0,0.00011232,2]
[336411180,1724815842238,-500.0,0.00011232,2]
[336411181,1724815842247,-500.0,0.00011232,2]
[336411182,1724815842257,-500.0,0.00011232,2]
[336411183,1724815842267,-506.19,0.00011232,2]
[336411184,1724815842278,-500.0,0.00011232,2]
[336411185,1724815842290,-507.07,0.00011232,2]
[336411186,1724815842300,-500.0,0.00011232,2]
[336411187,1724815842311,-500.0,0.00011232,2]
[336411188,1724815842321,-1871.19,0.00011232,2]
[336411189,1724815842332,-503.15118585,0.00011232,2]
[336411190,1724815842342,-500.0,0.00011232,2]
[336411191,1724815842352,-410.11641657,0.00011232,2]
[336411192,1724815842363,-500.0,0.00011232,2]
[336411193,1724815842373,-3233.87,0.00011232,2]
[336411194,1724815842386,-500.0,0.00011232,2]
[336411195,1724815842395,-500.0,0.00011232,2]
[336411196,1724815842406,-296.29036417,0.00011232,2]
[336411197,1724815842416,-500.0,0.00011232,2]
[336411198,1724815842427,-500.0,0.00011232,2]
[336411199,1724815842574,-500.0,0.00011232,2]
[336411200,1724815842584,-500.0,0.00011232,2]
[336411201,1724815842594,-500.0,0.00011232,2]
[336411202,1724815842603,-560.20579319,0.00011232,2]
[336411203,1724815842612,-1607.92,0.00011232,2]
[336411204,1724815842622,-510.33263118,0.00011232,2]
[336411205,1724815842637,-501.45767318,0.00011232,2]
[336411206,1724815842648,-500.0,0.00011232,2]
[336411207,1724815842658,-500.0,0.00011232,2]
[336411208,1724815842668,-500.0,0.00011232,2]
[336411209,1724815842678,-500.0,0.00011232,2]
[336411210,1724815842687,-500.0,0.00011232,2]
[336411211,1724815842696,-516.95,0.00011232,2]
[336411212,1724815842705,-500.0,0.00011232,2]
[336411213,1724815842714,-500.0,0.00011232,2]
[336411214,1724815842724,-500.0,0.00011232,2]
[336411215,1724815842734,-501.39464723,0.00011232,2]
[336411216,1724815842744,-501.38042307,0.00011232,2]
[336411217,1724815842754,-300.67858138,0.00011232,2]
[336411218,1724815842763,-503.05372134,0.00011232,2]
[336411219,1724815842773,-502.14687425,0.00011232,2]
[336411220,1724815842783,-502.92738681,0.00011232,2]
[336411221,1724815842793,-500.0,0.00011232,2]
[336411222,1724815842803,-500.0,0.00011232,2]
[336411223,1724815842813,-500.0,0.00011232,2]
[336411224,1724815842823,-500.0,0.00011232,2]
[336411225,1724815842832,-645.03,0.00011232,2]
[336411226,1724815842842,-587.56,0.00011232,2]
[336411227,1724815842854,-500.0,0.00011232,2]
[336411228,1724815842863,-500.0,0.00011232,2]
[336411229,1724815842873,-500.0,0.00011232,2]
[336411230,1724815842884,-500.0,0.00011232,2]
[336411231,1724815842894,-613.01,0.00011232,2]
[336411232,1724815842904,-1818.83,0.00011232,2]
[336411233,1724815842913,-916.45,0.00011232,2]
[336411234,1724815842923,-500.53941819,0.00011232,2]
[336411235,1724815842933,-500.0,0.00011232,2]
[336411236,1724815842943,-500.0,0.00011232,2]
[336411237,1724815842953,-649.76,0.00011232,2]
[336411238,1724815842963,-500.0,0.00011232,2]
[336411239,1724815842973,-500.0,0.00011232,2]
[336411240,1724815842983,-765.55,0.00011232,2]
[336411241,1724815842994,-500.0,0.00011232,2]
[336411242,1724815843003,-500.0,0.00011232,2]
[336411243,1724815843014,-500.0,0.00011232,2]
[336411244,1724815843024,-500.0,0.00011232,2]
[336411245,1724815843033,-500.0,0.00011232,2]
[336411246,1724815843043,-500.0,0.00011232,2]
[336411247,1724815843053,-500.0,0.00011232,2]
[336411248,1724815843062,-3778.36,0.00011232,2]
[336411249,1724815843072,-502.24,0.00011232,2]
[336411250,1724815843082,-500.0,0.00011232,2]
[336411252,1724815843091,-531.11,0.00011232,2]
[336411253,1724815843101,-507.06039095,0.00011232,2]
[336411254,1724815843111,-235.56467934,0.00011232,2]
[336411255,1724815843121,-469.96,0.00011232,2]